fUSD/lending_fUSD_20241121
["ID","MTS","AMOUNT","RATE_DAILY","PERIOD"]
[342888288,1732194641004,-541.93,0.00041095,18]
[342888289,1732194641014,-689.94,0.00041095,18]
[342888290,1732194641025,-500.0,0.00041095,18]
[342888291,1732194641034,-500.0,0.00041095,18]
[342888292,1732194641043,-500.0,0.00041095,18]
[342888293,1732194641052,-548.65,0.00041095,18]
[342888294,1732194641062,-1513.8,0.00041095,18]
[342888295,1732194641075,-500.0,0.00041095,18]
[342888296,1732194641084,-500.0,0.00041095,18]
[342888297,1732194641094,-2147.97,0.00041095,18]
[342888298,1732194641103,-828.48,0.00041095,18]
[342888299,1732194641115,-1031.29,0.00041095,18]
[342888300,1732194641125,-500.0,0.00041095,18]
[342888301,1732194641135,-500.0,0.00041095,18]
[342888302,1732194641145,-711.15,0.00041095,18]
[342888303,1732194641154,-934.86,0.00041095,18]
[342888304,1732194641164,-829.16,0.00041095,18]
[342888305,1732194641173,-500.0,0.00041095,18]
[342888306,1732194641183,-500.0,0.00041095,18]
[342888307,1732194641192,-439.32268803,0.00041095,18]
[342888308,1732194641201,-1014.7,0.00041095,18]
[342888309,1732194641211,-3813.71,0.00041095,18]
[342888310,1732194641220,-500.0,0.00041095,18]
[342888311,1732194641231,-3113.46,0.00041095,18]
[342888312,1732194641241,-5231.7,0.00041095,18]
[342888313,1732194641250,-2460.96,0.00041095,18]
[342888314,1732194641260,-690.51,0.00041095,18]
[342888315,1732194641270,-668.72,0.00041095,18]
[342888316,1732194641280,-1646.45,0.00041095,18]
[342888317,1732194641289,-500.0,0.00041095,18]
[342888318,1732194641298,-650.55,0.00041095,18]
[342888319,1732194641387,-500.0,0.00041095,18]
[342888320,1732194641397,-500.0,0.00041095,18]
[342888321,1732194641410,-871.98,0.00041095,18]
[342888322,1732194641419,-987.99,0.00041095,18]
[342888323,1732194641428,-1039.59,0.00041095,18]
[342888324,1732194641437,-4052.73,0.00041095,18]
[342888325,1732194641446,-597.16430827,0.00041095,18]
[342888326,1732194641456,-500.0,0.00041095,18]
[342888327,1732194641465,-860.23,0.00041095,18]
[342888328,1732194641474,-500.0,0.00041095,18]
[342888329,1732194641484,-500.0,0.00041095,18]
[342888330,1732194641494,-500.0,0.00041095,18]
[342888331,1732194641503,-500.0,0.00041095,18]
[342888332,1732194641511,-1262.53,0.00041095,18]
[342888333,1732194641521,-500.0,0.00041095,18]
[342888334,1732194641530,-368.51366389,0.00041095,18]
[342888335,1732194641539,-767.34,0.00041095,18]
[342888336,1732194641548,-954.48,0.00041095,18]
[342888337,1732194641558,-724.62,0.00041095,18]
[342888338,1732194641567,-500.0,0.00041095,18]
[342888339,1732194641576,-504.07,0.00041095,18]
[342888340,1732194641585,-500.0,0.00041095,18]
[342888341,1732194641594,-675.87,0.00041095,18]
[342888342,1732194641603,-2016.77,0.00041095,18]
[342888343,1732194641617,-500.0,0.00041095,18]
[342888344,1732194641626,-500.0,0.00041095,18]
[342888345,1732194641635,-596.76,0.00041095,18]
[342888346,1732194641644,-615.54,0.00041095,18]
[342888347,1732194641653,-685.07,0.00041095,18]
[342888348,1732194641662,-500.0,0.00041095,18]
[342888349,1732194641671,-500.0,0.00041095,18]
[342888350,1732194641680,-741.68,0.00041095,7]
[342888351,1732194641689,-1394.02,0.00041095,18]
[342888352,1732194641698,-750.77,0.00041095,18]
[342888353,1732194641707,-1815.86,0.00041095,18]
[342888354,1732194641716,-500.0,0.00041095,18]
[342888355,1732194641725,-500.0,0.00041095,18]
[342888356,1732194641734,-500.0,0.00041095,18]
[342888357,1732194641743,-610.28,0.00041095,18]
[342888358,1732194641752,-500.0,0.00041095,18]
[342888359,1732194641761,-500.0,0.00041095,18]
[342888360,1732194641770,-817.86,0.00041095,18]
[342888361,1732194641779,-500.0,0.00041095,18]
[342888362,1732194641789,-1258.17,0.00041095,18]
[342888363,1732194641798,-1500.0,0.00041095,120]
[342888364,1732194641807,-21921.81,0.00041095,18]
[342888365,1732194641816,-618.66818436,0.00041095,18]
[342888366,1732194641825,-672.11,0.00041095,18]
[342888367,1732194641834,-500.0,0.00041095,18]
[342888368,1732194641843,-2239.49,0.00041095,18]
[342888369,1732194641852,-500.0,0.00041095,18]
[342888370,1732194641861,-321.19572135,0.00041095,18]
[342888371,1732194641872,-993.04,0.00041095,18]
[342888372,1732194641881,-4988.71,0.00041095,18]
[342888373,1732194641890,-597.59,0.00041095,18]
[342888374,1732194641900,-500.0,0.00041095,18]
[342888375,1732194641909,-1765.4,0.00041095,18]
[342888376,1732194641918,-1619.06,0.00041095,18]
[342888377,1732194641927,-500.0,0.00041095,18]
[342888378,1732194641936,-500.0,0.00041095,18]
[342888379,1732194641945,-862.66,0.00041095,18]
[342888380,1732194641955,-966.97,0.00041095,18]
[342888381,1732194641964,-1798.77,0.00041095,18]
[342888382,1732194641973,-500.0,0.00041095,18]
[342888383,1732194641982,-500.0,0.00041095,18]
[342888384,1732194641991,-500.0,0.00041095,18]
[342888385,1732194642000,-870.92,0.00041095,18]
[342888386,1732194642010,-508.94,0.00041095,18]
[342888387,1732194642019,-500.0,0.00041095,18]
[342888388,1732194642029,-500.0,0.00041095,18]
[342888389,1732194642038,-500.0,0.00041095,18]
[342888390,1732194642047,-1868.35,0.00041095,18]
[342888391,1732194642056,-500.0,0.00041095,18]
[342888392,1732194642065,-3655.27,0.00041095,18]
[342888393,1732194642074,-500.0,0.00041095,18]
[342888394,1732194642083,-896.46,0.00041095,18]
[342888395,1732194642093,-674.22,0.00041095,18]
[342888396,1732194642102,-1094.32,0.00041095,18]
[342888397,1732194642112,-663.88,0.00041095,18]
[342888398,1732194642122,-500.0,0.00041095,18]
[342888399,1732194642131,-500.0,0.00041095,18]
[342888400,1732194642141,-805.98,0.00041095,18]
[342888401,1732194642150,-999.92,0.00041095,18]
[342888402,1732194642159,-500.0,0.00041095,18]
[342888403,1732194642168,-500.0,0.00041095,18]
[342888404,1732194642177,-1108.29,0.00041095,18]
[342888405,1732194642186,-3678.44,0.00041095,18]
[342888406,1732194642195,-2705.37,0.00041095,18]
[342888407,1732194642204,-5161.77,0.00041095,18]
[342888408,1732194642213,-500.0,0.00041095,18]
[342888409,1732194642222,-818.39,0.00041095,18]
[342888410,1732194642232,-2837.24,0.00041095,18]
[342888411,1732194642242,-500.0,0.00041095,18]
[342888412,1732194642251,-500.0,0.00041095,18]
[342888413,1732194642260,-1045.6,0.00041095,18]
[342888414,1732194642269,-560.57,0.00041095,18]
[342888415,1732194642278,-1494.03,0.00041095,18]
[342888416,1732194642288,-500.0,0.00041095,18]
[342888417,1732194642297,-3077.47,0.00041095,18]
[342888418,1732194642306,-514.11,0.00041095,18]
[342888419,1732194642316,-500.0,0.00041095,18]
[342888420,1732194642325,-500.0,0.00041095,18]
[342888421,1732194642335,-684.33,0.00041095,18]
[342888422,1732194642344,-758.58,0.00041095,18]
[342888423,1732194642353,-3197.41,0.00041095,18]
[342888424,1732194642362,-2714.24,0.00041095,18]
[342888425,1732194642373,-500.0,0.00041095,18]
[342888426,1732194642382,-5526.07,0.00041095,18]
[342888427,1732194642391,-500.0,0.00041095,18]
[342888428,1732194642400,-408.05568818,0.00041095,18]
[342888429,1732194642410,-783.58,0.00041095,18]
[342888430,1732194642422,-500.0,0.00041095,18]
[342888431,1732194642431,-500.0,0.00041095,18]
[342888432,1732194642440,-597.21,0.00041095,18]
[342888433,1732194642450,-500.0,0.00041095,18]
[342888434,1732194642460,-500.0,0.00041095,18]
[342888435,1732194642472,-500.0,0.00041095,18]
[342888436,1732194642482,-796.77,0.00041095,18]
[342888437,1732194642494,-500.0,0.00041095,18]
[342888438,1732194642504,-500.0,0.00041095,18]
[342888439,1732194642513,-2234.32,0.00041095,18]
[342888440,1732194642522,-723.07,0.00041095,7]
[342888441,1732194642532,-551.86,0.00041095,18]
[342888442,1732194642542,-708.81,0.00041095,18]
[342888443,1732194642552,-6964.07,0.00041095,18]
[342888444,1732194642561,-596.89225564,0.00041095,18]
[342888445,1732194642571,-500.0,0.00041095,18]
[342888446,1732194642580,-4594.17,0.00041095,18]
[342888447,1732194642589,-563.0,0.00041095,18]
[342888448,1732194642599,-1633.38,0.00041095,18]
[342888449,1732194642608,-670.31,0.00041095,18]
[342888450,1732194642619,-500.0,0.00041095,18]
[342888451,1732194642628,-500.0,0.00041095,18]
[342888452,1732194642637,-500.0,0.00041095,18]
[342888453,1732194642647,-773.49,0.00041095,18]
[342888454,1732194642656,-2134.18,0.00041095,18]
[342888455,1732194642665,-498.94191102,0.00041095,18]
[342888456,1732194642674,-601.72,0.00041095,18]
[342888457,1732194642684,-582.33,0.00041095,18]
[342888458,1732194642693,-836.38,0.00041095,18]
[342888459,1732194642701,-500.0,0.00041095,18]
[342888461,1732194642710,-501.21182886,0.00041095,18]
[342888462,1732194642719,-2241.61,0.00041095,18]
[342888463,1732194642728,-973.34,0.00041095,18]
[342888465,1732194642738,-500.0,0.00041095,18]
[342888467,1732194642746,-707.99,0.00041095,18]
[342888469,1732194642754,-500.0,0.00041095,18]
[342888470,1732194642763,-2158.7,0.00041095,18]
[342888471,1732194642771,-500.0,0.00041095,18]
[342888473,1732194642780,-500.0,0.00041095,18]
[342888474,1732194642789,-500.0,0.00041095,18]
[342888475,1732194642798,-551.51,0.00041095,18]
[342888476,1732194642807,-500.0,0.00041095,2]
[342888477,1732194642816,-868.62,0.00041095,18]
[342888478,1732194642825,-1043.98,0.00041095,18]
[342888479,1732194642834,-500.0,0.00041095,18]
[342888480,1732194642843,-500.0,0.00041095,18]
[342888482,1732194642852,-538.99,0.00041095,18]
[342888483,1732194642862,-3881.31,0.00041095,18]
[342888484,1732194642874,-932.75,0.00041095,18]
[342888485,1732194642883,-543.02,0.00041095,18]
[342888486,1732194642892,-500.0,0.00041095,18]
[342888487,1732194642901,-9332.64,0.00041095,18]
[342888488,1732194642911,-500.0,0.00041095,18]
[342888489,1732194642920,-3765.33,0.00041095,18]
[342888490,1732194642929,-433.33,0.00041096,2]
[342888491,1732194642938,-433.33,0.00041096,2]
[342888492,1732194642947,-157.0,0.00041096,2]
[342888493,1732194642956,-560.0,0.00041097,2]
[342888494,1732194642965,-1495.043,0.00041097,2]
[342888495,1732194642974,-1079.015,0.00041097,2]
[342888496,1732194642983,-1350.832,0.00041097,2]
[342888497,1732194642992,-920.176,0.00041097,2]
[342888498,1732194643001,-817.0,0.00041097,2]
[342888499,1732194643010,-476.44,0.00041178,30]
[342888500,1732194643019,-150.0,0.00041187,2]
[342888501,1732194643028,-235.44977876,0.00041188,28]
[342888502,1732194643038,-800.0,0.00041191,120]
[342888503,1732194643047,-17395.95053783,0.000412,30]
[342888504,1732194643056,-150.0,0.00041239,2]
[342888505,1732194643066,-150.0,0.00041263,2]
[342888506,1732194643075,-10703.23752414,0.00041264,15]
[342888507,1732194643084,-153.0,0.00041272,31]
[342888508,1732194643093,-153.0,0.00041272,31]
[342888509,1732194643101,-153.0,0.00041272,31]
[342888510,1732194643110,-153.0,0.00041272,31]
[342888511,1732194643123,-153.0,0.00041272,31]
[342888512,1732194643132,-153.0,0.00041272,31]
[342888513,1732194643141,-153.0,0.00041272,31]
[342888514,1732194643151,-153.0,0.00041272,31]
[342888515,1732194643160,-153.0,0.00041272,31]
[342888516,1732194643169,-153.0,0.00041272,31]
[342888517,1732194643178,-153.0,0.00041272,31]
[342888518,1732194643187,-153.0,0.00041272,31]
[342888519,1732194643196,-153.0,0.00041272,31]
[342888520,1732194643205,-153.0,0.00041272,31]
[342888521,1732194643214,-153.0,0.00041272,31]
[342888522,1732194643224,-153.0,0.00041272,31]
[342888523,1732194643233,-153.0,0.00041274,31]
[342888524,1732194643242,-153.0,0.00041274,31]
[342888525,1732194643251,-153.0,0.00041274,31]
[342888526,1732194643260,-153.0,0.00041274,31]
[342888527,1732194643270,-150.0,0.0004128,2]
[342888528,1732194643280,-764.41,0.00041288,30]
[342888529,1732194643290,-150.0,0.000413,2]
[342888530,1732194643299,-1500.0,0.00041309,7]
[342888531,1732194643309,-4604.6,0.00041315,120]
[342888532,1732194643318,-1770.14,0.00041315,120]
[342888533,1732194643327,-500.0,0.00041369,18]
[342888534,1732194643336,-500.0,0.00041369,18]
[342888535,1732194643345,-500.0,0.00041369,18]
[342888536,1732194643354,-500.0,0.00041369,18]
[342888537,1732194643365,-500.0,0.00041369,18]
[342888538,1732194643373,-500.0,0.00041369,18]
[342888539,1732194643383,-500.0,0.00041369,18]
[342888540,1732194643392,-820.99,0.00041369,18]
[342888541,1732194643401,-500.0,0.00041369,18]
[342888542,1732194643414,-551.11,0.00041369,18]
[342888543,1732194643425,-500.0,0.00041369,18]
[342888545,1732194643434,-500.0,0.00041369,18]
[342888547,1732194643443,-500.0,0.00041369,18]
[342888549,1732194643453,-276.2134337,0.00041369,18]
[342888550,1732194643462,-500.0,0.00041369,18]
[342888551,1732194643471,-500.0,0.00041369,18]
[342888552,1732194643481,-500.0,0.00041369,18]
[342888553,1732194643491,-1073.8,0.00041369,18]
[342888554,1732194643500,-532.73,0.00041369,18]
[342888557,1732194643509,-500.0,0.00041369,18]
[342888559,1732194643518,-170.542089,0.00041369,18]
[342888560,1732194643527,-1022.643842,0.00041369,18]
[342888561,1732194643535,-500.0,0.00041369,18]
[342888562,1732194643544,-500.0,0.00041369,18]
[342888563,1732194643553,-500.0,0.00041369,18]
[342888564,1732194643563,-500.0,0.00041369,18]
[342888565,1732194643572,-546.84,0.00041369,18]
[342888566,1732194643581,-720.41,0.00041369,18]
[342888567,1732194643590,-500.0,0.00041369,18]
[342888568,1732194643599,-500.0,0.00041369,18]
[342888569,1732194643608,-500.0,0.00041369,18]
[342888570,1732194643619,-500.0,0.00041369,18]
[342888571,1732194643628,-500.0,0.00041369,18]
[342888572,1732194643637,-573.75,0.00041369,18]
[342888573,1732194643647,-500.0,0.00041369,18]
[342888574,1732194643656,-592.72,0.00041369,18]
[342888575,1732194643665,-521.8,0.00041369,18]
[342888576,1732194643674,-500.0,0.00041369,18]
[342888577,1732194643683,-500.0,0.00041369,18]
[342888578,1732194643692,-570.14,0.00041369,18]
[342888579,1732194643701,-500.0,0.00041369,18]
[342888580,1732194643710,-636.87,0.00041369,18]
[342888581,1732194643719,-885.53,0.00041369,18]
[342888582,1732194643729,-500.0,0.00041369,18]
[342888583,1732194643738,-500.0,0.00041369,18]
[342888584,1732194643747,-735.84,0.00041369,18]
[342888585,1732194643756,-605.67,0.00041369,18]
[342888586,1732194643766,-864.58,0.00041369,18]
[342888587,1732194643775,-500.0,0.00041369,18]
[342888588,1732194643785,-1089.51,0.00041369,18]
[342888589,1732194643794,-1294.62,0.00041369,18]
[342888590,1732194643803,-970.86,0.00041369,18]
[342888591,1732194643813,-500.0,0.00041369,18]
[342888592,1732194643822,-571.38856557,0.00041369,18]
[342888593,1732194643831,-500.0,0.00041369,18]
[342888594,1732194643840,-500.0,0.00041369,18]
[342888595,1732194643849,-528.56,0.00041369,18]
[342888596,1732194643858,-500.0,0.00041369,18]
[342888597,1732194643870,-782.56,0.00041369,18]
[342888598,1732194643880,-739.73,0.00041369,18]
[342888599,1732194643890,-500.0,0.00041369,18]
[342888600,1732194643899,-652.47,0.00041369,18]
[342888601,1732194643908,-500.0,0.00041369,18]
[342888602,1732194643917,-500.0,0.00041369,18]
[342888603,1732194643926,-500.0,0.00041369,18]
[342888604,1732194643936,-1709.05,0.00041369,18]
[342888605,1732194643945,-500.0,0.00041369,18]
[342888606,1732194643954,-549.94,0.00041369,18]
[342888607,1732194643964,-500.0,0.00041369,18]
[342888608,1732194643974,-222.01041796,0.00041369,18]
[342888609,1732194643983,-500.0,0.00041369,18]
[342888610,1732194643992,-1793.24,0.00041369,18]
[342888611,1732194644001,-500.0,0.00041369,18]
[342888612,1732194644010,-567.55,0.00041369,18]
[342888613,1732194644019,-500.0,0.00041369,18]
[342888614,1732194644028,-862.91,0.00041369,18]
[342888615,1732194644037,-502.88,0.00041369,18]
[342888616,1732194644045,-1500.58,0.00041369,18]
[342888617,1732194644055,-500.0,0.00041369,18]
[342888618,1732194644064,-500.0,0.00041369,18]
[342888619,1732194644073,-674.04,0.00041369,18]
[342888620,1732194644082,-500.0,0.00041369,18]
[342888621,1732194644090,-3758.09,0.00041369,18]
[342888622,1732194644099,-513.62779573,0.00041369,18]
[342888623,1732194644108,-500.0,0.00041369,18]
[342888624,1732194644119,-500.0,0.00041369,18]
[342888625,1732194644128,-500.0,0.00041369,18]
[342888626,1732194644137,-500.0,0.00041369,18]
[342888627,1732194644146,-500.0,0.00041369,18]
[342888628,1732194644155,-1720.2,0.00041369,18]
[342888629,1732194644164,-500.0,0.00041369,18]
[342888630,1732194644174,-500.0,0.00041369,18]
[342888631,1732194644182,-683.08,0.00041369,18]
[342888632,1732194644191,-500.0,0.00041369,18]
[342888633,1732194644200,-500.0,0.00041369,18]
[342888634,1732194644209,-1005.12,0.00041369,18]
[342888635,1732194644218,-500.0,0.00041369,18]
[342888636,1732194644227,-500.0,0.00041369,18]
[342888637,1732194644236,-500.0,0.00041369,18]
[342888638,1732194644245,-612.28,0.00041369,18]
[342888639,1732194644255,-500.0,0.00041369,18]
[342888640,1732194644264,-500.0,0.00041369,18]
[342888641,1732194644273,-500.0,0.00041369,18]
[342888642,1732194644283,-500.0,0.00041369,18]
[342888643,1732194644292,-500.0,0.00041369,18]
[342888644,1732194644301,-500.0,0.00041369,18]
[342888645,1732194644311,-500.0,0.00041369,18]
[342888646,1732194644320,-500.0,0.00041369,18]
[342888647,1732194644330,-820.21,0.00041369,18]
[342888648,1732194644340,-589.55,0.00041369,18]
[342888649,1732194644349,-500.0,0.00041369,18]
[342888650,1732194644358,-759.37,0.00041369,18]
[342888651,1732194644367,-500.0,0.00041369,18]
[342888652,1732194644376,-542.43,0.00041369,18]
[342888653,1732194644386,-500.0,0.00041369,18]
[342888654,1732194644395,-500.0,0.00041369,18]
[342888655,1732194644405,-711.21,0.00041369,18]
[342888656,1732194644415,-500.0,0.00041369,18]
[342888657,1732194644425,-597.22,0.00041369,18]
[342888658,1732194644434,-2473.44,0.00041369,18]
[342888659,1732194644443,-191.81908599,0.00041369,18]
[342888660,1732194644453,-500.0,0.00041369,18]
[342888661,1732194644462,-500.0,0.00041369,18]
[342888662,1732194644472,-727.03,0.00041369,18]
[342888663,1732194644481,-500.0,0.00041369,18]
[342888664,1732194644491,-600.89,0.00041369,18]
[342888665,1732194644501,-2227.68,0.00041369,18]
[342888666,1732194644510,-500.0,0.00041369,18]
[342888667,1732194644520,-500.0,0.00041369,18]
[342888668,1732194644529,-1037.59,0.00041369,18]
[342888669,1732194644538,-523.14,0.00041369,18]
[342888670,1732194644548,-658.23,0.00041369,18]
[342888671,1732194644557,-500.0,0.00041369,18]
[342888672,1732194644566,-500.0,0.00041369,18]
[342888673,1732194644576,-541.47,0.00041369,18]
[342888674,1732194644585,-500.0,0.00041369,18]
[342888675,1732194644595,-676.64,0.00041369,18]
[342888676,1732194644604,-700.0,0.00041369,18]
[342888677,1732194644613,-500.0,0.00041369,18]
[342888678,1732194644625,-500.0,0.00041369,18]
[342888679,1732194644634,-500.0,0.00041369,18]
[342888680,1732194644642,-1704.93,0.00041369,18]
[342888681,1732194644651,-500.0,0.00041369,18]
[342888682,1732194644660,-500.0,0.00041369,18]
[342888683,1732194644669,-3586.05,0.00041369,18]
[342888684,1732194644679,-794.07,0.00041369,18]
[342888685,1732194644688,-1080.61,0.00041369,18]
[342888686,1732194644696,-500.0,0.00041369,18]
[342888687,1732194644705,-500.0,0.00041369,18]
[342888688,1732194644715,-500.0,0.00041369,18]
[342888689,1732194644724,-500.0,0.00041369,18]
[342888690,1732194644732,-500.0,0.00041369,18]
[342888691,1732194644742,-500.0,0.00041369,18]
[342888692,1732194644751,-617.05,0.00041369,18]
[342888693,1732194644760,-500.0,0.00041369,18]
[342888694,1732194644769,-500.0,0.00041369,18]
[342888695,1732194644778,-500.0,0.00041369,18]
[342888696,1732194644788,-500.0,0.00041369,18]
[342888697,1732194644797,-500.0,0.00041369,18]
[342888698,1732194644806,-500.0,0.00041369,18]
[342888699,1732194644815,-500.0,0.00041369,18]
[342888700,1732194644824,-871.76,0.00041369,18]
[342888701,1732194644833,-527.11,0.00041369,18]
[342888702,1732194644842,-500.0,0.00041369,18]
[342888703,1732194644851,-500.0,0.00041369,18]
[342888704,1732194644860,-500.0,0.00041369,18]
[342888705,1732194644871,-595.66,0.00041369,18]
[342888706,1732194644880,-573.0,0.00041369,18]
[342888707,1732194644889,-500.0,0.00041369,18]
[342888708,1732194644898,-500.0,0.00041369,18]
[342888709,1732194644907,-1250.24,0.00041369,18]
[342888710,1732194644916,-500.0,0.00041369,18]
[342888711,1732194644926,-500.0,0.00041369,18]
[342888712,1732194644935,-1286.32,0.00041369,18]
[342888713,1732194644944,-1269.19,0.00041369,18]
[342888714,1732194644953,-500.0,0.00041369,18]
[342888715,1732194644962,-534.53,0.00041369,18]
[342888716,1732194644971,-689.61,0.00041369,18]
[342888717,1732194644980,-574.77,0.00041369,18]
[342888718,1732194644989,-500.0,0.00041369,18]
[342888719,1732194644998,-500.0,0.00041369,18]
[342888720,1732194645008,-978.86,0.00041369,18]
[342888721,1732194645018,-500.0,0.00041369,18]
[342888722,1732194645028,-1384.23,0.00041369,18]
[342888723,1732194645037,-606.00717243,0.00041369,18]
[342888724,1732194645046,-500.0,0.00041369,18]
[342888725,1732194645055,-500.0,0.00041369,18]
[342888726,1732194645064,-500.0,0.00041369,18]
[342888727,1732194645073,-1047.57,0.00041369,18]
[342888728,1732194645082,-500.0,0.00041369,18]
[342888729,1732194645091,-1876.42,0.00041369,18]
[342888730,1732194645100,-500.0,0.00041369,18]
[342888731,1732194645109,-500.0,0.00041369,18]
[342888732,1732194645121,-724.57,0.00041369,18]
[342888733,1732194645130,-806.53,0.00041369,18]
[342888734,1732194645139,-796.48,0.00041369,18]
[342888735,1732194645148,-500.0,0.00041369,18]
[342888736,1732194645158,-500.0,0.00041369,18]
[342888737,1732194645168,-500.0,0.00041369,18]
[342888738,1732194645180,-500.0,0.00041369,18]
[342888739,1732194645192,-202.47422015,0.00041369,18]
[342888740,1732194645201,-500.0,0.00041369,18]
[342888741,1732194645211,-1453.39,0.00041369,18]
[342888742,1732194645220,-760.17,0.00041369,18]
[342888743,1732194645229,-830.01,0.00041369,18]
[342888744,1732194645239,-500.0,0.00041369,18]
[342888745,1732194645248,-327.5468021,0.00041369,18]
[342888746,1732194645257,-500.0,0.00041369,18]
[342888747,1732194645267,-1772.63,0.00041369,18]
[342888748,1732194645276,-577.34,0.00041369,18]
[342888749,1732194645286,-500.0,0.00041369,18]
[342888750,1732194645296,-914.38,0.00041369,18]
[342888751,1732194645306,-500.0,0.00041369,18]
[342888752,1732194645316,-500.0,0.00041369,18]
[342888753,1732194645326,-722.44,0.00041369,18]
[342888754,1732194645335,-500.0,0.00041369,18]
[342888755,1732194645344,-578.00922057,0.00041369,18]
[342888756,1732194645462,-500.0,0.00041369,18]
[342888757,1732194645482,-1775.26,0.00041369,18]
[342888758,1732194645492,-704.54,0.00041369,18]
[342888759,1732194645502,-500.0,0.00041369,18]
[342888760,1732194645511,-1295.65,0.00041369,18]
[342888761,1732194645520,-500.0,0.00041369,18]
[342888762,1732194645530,-500.0,0.00041369,18]
[342888763,1732194645539,-500.0,0.00041369,18]
[342888764,1732194645549,-500.0,0.00041369,18]
[342888765,1732194645560,-652.6,0.00041369,18]
[342888767,1732194645569,-500.0,0.00041369,18]
[342888769,1732194645579,-500.0,0.00041369,18]
[342888770,1732194645589,-1425.81,0.00041369,18]
[342888771,1732194645598,-500.0,0.00041369,18]
[342888772,1732194645608,-500.0,0.00041369,18]
[342888773,1732194645620,-500.0,0.00041369,18]
[342888775,1732194645630,-500.0,0.00041369,18]
[342888777,1732194645640,-489.55357748,0.00041369,18]
[342888778,1732194645649,-609.85,0.00041369,18]
[342888779,1732194645659,-519.7,0.00041369,18]
[342888780,1732194645668,-500.0,0.00041369,18]
[342888781,1732194645678,-1000.0,0.00041369,18]
[342888782,1732194645687,-500.0,0.00041369,18]
[342888784,1732194645697,-581.66776536,0.00041369,18]
[342888785,1732194645706,-726.23,0.00041369,18]
[342888786,1732194645716,-500.0,0.00041369,18]
[342888787,1732194645725,-500.0,0.00041369,18]
[342888788,1732194645735,-500.0,0.00041369,18]
[342888789,1732194645744,-721.01,0.00041369,18]
[342888790,1732194645753,-500.0,0.00041369,18]
[342888792,1732194645763,-500.0,0.00041369,18]
[342888793,1732194645772,-500.0,0.00041369,18]
[342888794,1732194645781,-500.0,0.00041369,18]
[342888795,1732194645790,-1387.16,0.00041369,7]
[342888796,1732194645800,-500.0,0.00041369,18]
[342888797,1732194645810,-627.75,0.00041369,18]
[342888798,1732194645820,-2905.88,0.00041369,18]
[342888799,1732194645829,-500.0,0.00041369,18]
[342888800,1732194645838,-500.0,0.00041369,18]
[342888801,1732194645847,-500.0,0.00041369,18]
[342888802,1732194645857,-500.0,0.00041369,18]
[342888803,1732194645866,-1787.31,0.00041369,18]
[342888804,1732194645877,-500.0,0.00041369,18]
[342888805,1732194645887,-500.0,0.00041369,18]